bitfinex-derivatives/quotes_BTCF0:USTF0_20251219
["timestamp","ask_amount","ask_price","bid_price","bid_amount"]
[1766108380546,0.3608,85419.0,85404.0,0.0117154]
[1766108380737,0.3608,85419.0,85410.0,0.13848]
[1766108380937,0.00588,85418.0,85410.0,0.13848]
[1766108381243,0.0006,85429.0,85410.0,0.13848]
[1766108381244,0.36668,85423.0,85410.0,0.14436]
[1766108381445,0.011713,85422.0,85410.0,0.14436]
[1766108382145,0.0117133,85420.0,85410.0,0.00588]
[1766108382538,0.3783929,85423.0,85410.0,0.00588]
[1766108383649,0.00588,85422.0,85410.0,0.00588]
[1766108384649,0.3608,85423.0,85410.0,0.144]
[1766108384851,0.00588,85422.0,85410.0,0.144]
[1766108388850,0.00588,85422.0,85413.0,0.3608]
[1766108389050,0.3725126,85425.0,85413.0,0.3608]
[1766108389247,0.00588,85424.0,85413.0,0.3608]
[1766108389446,0.00588,85423.0,85413.0,0.3608]
[1766108389647,0.3608,85425.0,85413.0,0.3608]
[1766108389848,0.00588,85424.0,85413.0,0.3608]
[1766108390244,0.0117132,85421.0,85413.0,0.3608]
[1766108390451,0.00051,85423.0,85413.0,0.3608]
[1766108390651,0.00588,85422.0,85413.0,0.3608]
[1766108390853,0.00588,85421.0,85413.0,0.3608]
[1766108391156,0.011713,85422.0,85413.0,0.3608]
[1766108391358,0.00588,85421.0,85413.0,0.3608]
[1766108391861,0.011713,85422.0,85413.0,0.3608]
[1766108392059,0.00588,85421.0,85413.0,0.3608]
[1766108392462,0.0117132,85420.0,85413.0,0.3608]
[1766108393060,0.0117138,85416.0,85410.0,0.00588]
[1766108393361,0.3608,85414.0,85410.0,0.00588]
[1766108396452,0.3608,85414.0,85410.0,1e-07]
[1766108396762,0.3608,85414.0,85407.0,0.00588]
[1766108399262,0.0117142,85413.0,85407.0,0.00588]
[1766108400257,0.3608,85414.0,85407.0,0.00588]
[1766108403162,0.00588,85413.0,85407.0,0.00588]
[1766108408257,0.00588,85413.0,85408.0,0.1386]
[1766108408457,0.00588,85413.0,85407.0,0.00588]
[1766108410467,0.0175943,85413.0,85407.0,0.00588]
[1766108410669,0.00588,85413.0,85407.0,0.00588]
[1766108411057,0.3608,85414.0,85407.0,0.00588]
[1766108411262,0.00588,85413.0,85407.0,0.00588]
[1766108412364,0.0117143,85412.0,85407.0,0.00588]
[1766108412669,0.0117143,85412.0,85397.0,0.0117163]
[1766108412670,0.0117159,85401.0,85377.0,0.13653]
[1766108412967,0.3608,85414.0,85377.0,0.13653]
[1766108412968,0.3608,85378.0,85377.0,0.13653]
[1766108413170,0.0058,85378.0,85377.0,0.14241]
[1766108413358,0.00372,85388.0,85377.0,0.14241]
[1766108415572,0.00372,85388.0,85382.0,0.3608]
[1766108417270,0.14677,85386.0,85377.0,0.00588]
[1766108417469,0.00588,85385.0,85377.0,0.00588]
[1766108417672,0.15265,85385.0,85377.0,0.00588]
[1766108419477,0.15265,85385.0,85374.0,0.36097564]
[1766108419478,0.15265,85385.0,85376.0,0.00588]
[1766108421376,0.3608,85377.0,85374.0,0.00588]
[1766108422371,0.2008,85377.0,85374.0,0.00588]
[1766108422573,0.00588,85382.0,85374.0,0.00588]
[1766108422878,0.00588,85382.0,85374.0,0.14241]
[1766108423778,0.0175985,85382.0,85374.0,0.00588]
[1766108423975,0.0117201,85370.0,85369.0,0.13653]
[1766108424177,0.14005,85369.0,85349.0,0.3608]
[1766108424478,0.0117227,85352.0,85340.0,0.00588]
[1766108424674,0.3608,85343.0,85340.0,0.00588]
[1766108424876,0.0058,85341.0,85340.0,0.00588]
[1766108425075,0.50462,85351.0,85340.0,0.00588]
[1766108425271,0.00017576,85349.0,85340.0,0.00588]
[1766108426079,0.1643731,85348.0,85340.0,0.00588]
[1766108426288,0.1643731,85348.0,85338.0,0.36314364]
[1766108426679,0.0117243,85340.0,85332.0,0.00017576]
[1766108426879,0.3608,85335.0,85332.0,6e-08]
[1766108427072,0.00588,85340.0,85332.0,6e-08]
[1766108430891,0.14677,85339.0,85327.0,0.3608]
[1766108431080,0.00588,85339.0,85328.0,0.14241]
[1766108431475,0.00588,85340.0,85328.0,0.14241]
[1766108432285,0.00588,85340.0,85329.0,0.1482557]
[1766108433486,0.00588,85340.0,85329.0,0.13653]
[1766108434685,0.3608,85337.0,85329.0,0.13653]
[1766108434889,0.3608,85337.0,85328.0,0.00588]
[1766108435376,0.00588,85340.0,85329.0,0.1482557]
[1766108435987,0.00588,85340.0,85328.0,0.00588]
[1766108435988,0.3608,85344.0,85331.0,0.1482554]
[1766108436188,0.00588,85343.0,85335.0,0.13653]
[1766108436580,0.00588,85343.0,85334.0,0.3608]
[1766108436988,0.00588,85343.0,85332.0,0.00588]
[1766108437992,0.00588,85343.0,85332.0,0.14241]
[1766108439296,0.00010921,85347.0,85342.0,0.3608]
[1766108439486,0.14677,85361.0,85346.0,0.0117234]
[1766108439796,0.00588,85360.0,85353.0,0.3608]
[1766108440095,0.011722,85357.0,85347.0,0.13653]
[1766108440292,0.00588,85356.0,85349.0,0.3608]
[1766108441794,0.00588,85355.0,85349.0,0.3608]
[1766108443190,0.00588,85354.0,85349.0,0.3608]
[1766108443393,0.00017576,85361.0,85349.0,0.51063]
[1766108443599,0.00588,85360.0,85357.0,0.3608]
[1766108443798,0.00588,85359.0,85357.0,0.3608]
[1766108444392,0.36668,85359.0,85350.0,0.00588]
[1766108445398,0.3608,85359.0,85350.0,0.00588]
[1766108445600,0.00588,85358.0,85350.0,0.00588]
[1766108446102,0.1529718,85358.0,85350.0,0.00588]
[1766108446693,0.14125,85358.0,85350.0,0.00588]
[1766108447092,0.0117219,85357.0,85350.0,0.00588]
[1766108447403,0.1470919,85357.0,85350.0,0.00588]
[1766108447590,0.3608,85351.0,85336.0,0.3608]
[1766108447902,0.13537,85350.0,85343.0,0.00588]
[1766108448101,0.36668,85351.0,85343.0,0.00588]
[1766108449105,0.3784028,85351.0,85343.0,0.00588]
[1766108449492,0.3784028,85351.0,85340.0,0.00588]
[1766108449694,0.36668,85351.0,85340.0,0.00588]
[1766108450494,0.36668,85351.0,85340.0,0.21201996]
[1766108451306,0.13537,85349.0,85338.0,6e-08]
[1766108451606,0.13537,85338.0,85321.0,0.14983]
[1766108451809,0.3608,85325.0,85323.0,0.14983]
[1766108453008,0.00017576,85333.0,85323.0,0.14983]
[1766108453191,0.00017576,85333.0,85322.0,0.00588]
[1766108453390,0.3608,85331.0,85322.0,0.00588]
[1766108454296,0.3725255,85331.0,85322.0,0.00588]
[1766108455408,0.0117261,85327.0,85320.0,0.3608]
[1766108455600,0.1470961,85327.0,85320.0,0.36668]
[1766108455993,0.3608,85321.0,85309.0,2.46276505]
[1766108456195,0.7216,85321.0,85316.0,0.00588]
[1766108457706,0.13537,85320.0,85311.0,1.5]
[1766108457896,0.3608,85312.0,85309.0,0.00012505]
[1766108458103,0.3608,85312.0,85310.0,0.00588]
[1766108459001,0.2008,85312.0,85310.0,0.00588]
[1766108459303,0.14125,85320.0,85310.0,0.00588]
[1766108460104,0.14125,85320.0,85309.0,1.50012505]
[1766108460105,0.14125,85320.0,85311.0,0.00588]
[1766108460906,0.00588,85320.0,85311.0,0.51651]
[1766108461103,0.00588,85320.0,85311.0,0.36668]
[1766108461306,0.14125,85320.0,85311.0,0.00588]
[1766108461695,0.00588,85320.0,85311.0,0.00588]
[1766108461896,0.14125,85320.0,85311.0,0.00588]
[1766108462097,0.00588,85320.0,85312.0,0.0117281]
[1766108462293,0.3608,85322.0,85312.0,0.0117281]
[1766108462492,0.00588,85321.0,85312.0,0.0117281]
[1766108463699,0.00588,85320.0,85312.0,0.0117281]
[1766108464094,0.00588,85320.0,85311.0,0.51651]
[1766108464095,0.157827,85320.0,85311.0,0.00588]
[1766108464301,0.00588,85320.0,85311.0,0.00588]
[1766108465703,0.00588,85320.0,85311.0,0.1458]
[1766108465912,0.00588,85320.0,85311.0,0.5066]
[1766108466308,0.00588,85319.0,85313.0,0.0117279]
[1766108466514,0.00588,85320.0,85314.0,0.0117277]
[1766108467917,0.14022,85325.0,85314.0,0.0117277]
[1766108468123,0.00588,85324.0,85314.0,0.0117277]
[1766108468613,0.3608,85322.0,85311.0,0.5066]
[1766108469403,0.00588,85321.0,85311.0,0.5066]
[1766108469713,0.00588,85321.0,85312.0,0.0117281]
[1766108470507,0.3608,85322.0,85313.0,0.13992]
[1766108470812,0.00588,85321.0,85313.0,0.13992]
[1766108472202,0.00588,85321.0,85312.0,0.0117281]
[1766108472813,0.00588,85321.0,85311.0,0.36668]
[1766108473014,0.3608,85322.0,85312.0,0.14855]
[1766108473198,0.00588,85321.0,85312.0,0.14855]
[1766108473714,0.00588,85321.0,85312.0,0.1602781]
[1766108474808,0.0117259,85329.0,85312.0,0.14855]
[1766108475015,0.00588,85329.0,85321.0,6e-05]
[1766108476713,0.00588,85329.0,85327.0,0.3608]
[1766108478918,0.3608,85328.0,85319.0,0.00599712]
[1766108479221,0.3608,85328.0,85322.0,0.0117267]
[1766108479611,0.3608,85328.0,85319.0,0.01772422]
[1766108480619,0.3608,85328.0,85319.0,0.00599712]
[1766108481322,0.3608,85328.0,85319.0,0.01772412]
[1766108481506,0.3608,85328.0,85321.0,0.0117268]
[1766108482217,0.3608,85328.0,85319.0,0.00599712]
[1766108483323,0.3608,85328.0,85319.0,0.01772422]
[1766108483714,0.3608,85328.0,85319.0,0.00599712]
[1766108484122,0.36668,85328.0,85321.0,0.3608]
[1766108485022,0.36668,85328.0,85319.0,0.00599712]
[1766108485323,0.50938,85328.0,85319.0,0.00599712]
[1766108485522,0.36668,85328.0,85319.0,0.00599712]
[1766108485917,0.3608,85328.0,85319.0,0.00599712]
[1766108486124,6e-08,85333.0,85330.0,0.0117255]
[1766108486425,0.00588,85345.0,85340.0,0.0117242]
[1766108486616,0.00588,85346.0,85342.0,0.3608]
[1766108486812,0.3608,85349.0,85342.0,0.3608]
[1766108487015,0.1427,85358.0,85344.0,0.0117236]
[1766108487316,0.3608,85370.0,85351.0,0.3608]
[1766108487317,0.00017576,85360.0,85351.0,0.3608]
[1766108487523,0.00588,85359.0,85351.0,0.3608]
[1766108487723,0.00588,85359.0,85345.0,0.00588]
[1766108487724,0.1427,85351.0,85345.0,0.00588]
[1766108488608,0.1544232,85348.0,85340.0,0.00588]
[1766108488821,0.3608,85341.0,85340.0,0.00588]
[1766108489922,0.1427,85348.0,85340.0,0.00588]
[1766108495510,0.3608,85345.0,85340.0,0.00588]
[1766108496724,0.3608,85345.0,85327.0,0.3608]
[1766108496725,0.1427,85339.0,85327.0,0.3608]
[1766108496921,0.1427,85333.0,85329.0,0.20613996]
[1766108497221,0.1427,85333.0,85328.0,0.00588]
[1766108497427,0.3608,85334.0,85328.0,0.00588]
[1766108498822,0.1427,85328.0,85319.0,0.3608]
[1766108499014,0.3608,85334.0,85320.0,0.00588]
[1766108499015,0.1427,85326.0,85320.0,0.00588]
[1766108499426,0.3608,85327.0,85320.0,0.00588]
[1766108499814,0.00588,85329.0,85321.0,0.0117268]
[1766108500312,0.00588,85331.0,85321.0,0.0117268]
[1766108500731,0.1544248,85336.0,85320.0,0.51523]
[1766108500732,0.00588,85332.0,85327.0,0.3608]
[1766108501324,0.5035,85336.0,85327.0,0.3608]
[1766108501325,0.00588,85333.0,85327.0,0.3608]
[1766108503327,0.00588,85333.0,85324.0,0.00588]
[1766108504530,0.14712,85333.0,85324.0,0.00588]
[1766108504827,0.00588,85333.0,85324.0,0.00588]
[1766108505025,0.3608,85336.0,85324.0,0.00588]
[1766108505213,0.00588,85335.0,85324.0,0.0176064]
[1766108507632,0.00588,85335.0,85324.0,0.00588]
[1766108507834,0.14124,85333.0,85324.0,0.00588]
[1766108508330,0.14124,85331.0,85325.0,0.00588]
[1766108508530,0.14124,85325.0,85322.0,0.00588]
[1766108509116,0.14124,85325.0,85320.0,0.00588]
[1766108509322,0.0117264,85324.0,85320.0,0.00588]
[1766108509522,0.14124,85325.0,85320.0,0.00588]
[1766108509726,0.14124,85325.0,85312.0,0.13595]
[1766108509937,0.3608,85315.0,85313.0,0.00588]
[1766108510231,0.00017576,85323.0,85313.0,0.3784079]
[1766108510619,0.00017576,85323.0,85313.0,0.5143579]
[1766108511023,0.00017576,85323.0,85314.0,0.13595]
[1766108512747,0.0117269,85321.0,85313.0,0.36668]
[1766108513044,0.3608,85319.0,85314.0,0.00588]
[1766108515029,0.50204,85319.0,85314.0,0.00588]
[1766108515428,0.1529673,85318.0,85314.0,0.00588]
[1766108516140,0.14124,85318.0,85314.0,0.00588]
[1766108516525,0.14124,85318.0,85309.0,0.00012505]
[1766108516729,0.14124,85318.0,85310.0,0.00588]
[1766108518834,0.3608,85319.0,85310.0,0.00588]
[1766108519438,0.00588,85320.0,85310.0,0.00588]
[1766108519639,0.3608,85319.0,85310.0,0.00588]
[1766108520832,0.3608,85319.0,85310.0,0.14183]
[1766108521034,0.00588,85320.0,85314.0,0.13595]
[1766108521235,0.00588,85320.0,85313.0,0.3608]
[1766108521932,0.15902236,85323.0,85314.0,0.00588]
[1766108522530,0.15314236,85323.0,85314.0,0.00588]
[1766108522730,0.00588,85322.0,85314.0,0.00588]
[1766108523535,0.15401,85322.0,85314.0,0.00588]
[1766108524035,0.00588,85322.0,85314.0,0.00588]
[1766108524734,0.00588,85322.0,85314.0,0.15119]
[1766108524931,0.00588,85323.0,85320.0,0.3608]
[1766108525134,0.0117245,85339.0,85323.0,0.1570365]
[1766108525337,0.14813,85343.0,85329.0,0.3608]
[1766108525546,0.00588,85338.0,85330.0,0.14531]
[1766108526437,0.00588,85338.0,85329.0,0.36668]
[1766108526846,0.00017576,85343.0,85330.0,0.14531]
[1766108527149,0.20620532,85380.0,85329.0,0.36668]
[1766108527150,0.0117225,85353.0,85337.0,0.1570346]
[1766108527349,0.00588,85352.0,85339.0,0.14531]
[1766108527741,0.00588,85352.0,85343.0,0.3608]
[1766108527938,0.14813,85362.0,85344.0,0.14531]
[1766108528140,0.3608,85365.0,85351.0,0.14531]
[1766108528346,0.0117197,85373.0,85359.0,0.14531]
[1766108528549,0.3608,85371.0,85359.0,0.14531]
[1766108529056,0.0117208,85366.0,85358.0,0.36668]
[1766108529346,0.14813,85358.0,85342.0,0.0117239]
[1766108529550,0.14813,85358.0,85343.0,0.00588]
[1766108530352,0.14813,85358.0,85344.0,0.0117237]
[1766108531354,0.3608,85352.0,85346.0,0.0117233]
[1766108531553,0.3608,85352.0,85347.0,0.00588]
[1766108531759,0.14813,85358.0,85351.0,0.3608]
[1766108531939,0.14813,85365.0,85352.0,0.00588]
[1766108533038,0.14535,85363.0,85352.0,0.00588]
[1766108533448,0.15123,85363.0,85352.0,0.00588]
[1766108537356,0.1570714,85361.0,85352.0,0.00588]
[1766108538253,0.1570714,85361.0,85353.0,0.00588]
[1766108538443,0.14535,85361.0,85353.0,0.00588]
[1766108540850,0.1570714,85361.0,85353.0,0.00588]
[1766108542043,0.14535,85358.0,85353.0,0.00588]
[1766108546355,0.14535,85359.0,85353.0,0.00588]
[1766108546743,0.14535,85359.0,85354.0,0.00588]
[1766108548152,0.00588,85362.0,85354.0,0.00588]
[1766108548356,0.15123,85362.0,85354.0,0.00588]
[1766108548556,0.14535,85362.0,85354.0,0.00588]
[1766108548758,0.15123,85362.0,85354.0,0.00588]
[1766108548949,0.15123,85362.0,85358.0,0.3608]
[1766108549154,0.3608,85359.0,85354.0,0.00588]
[1766108550357,0.15123,85362.0,85356.0,0.3608]
[1766108550554,0.15098239,85362.0,85356.0,0.3608]
[1766108551250,0.14510239,85362.0,85356.0,0.3608]
[1766108552360,0.14510239,85362.0,85357.0,0.0117219]
[1766108553055,0.14510239,85362.0,85356.0,0.2808]
[1766108553262,0.14510239,85362.0,85354.0,0.0176022]
[1766108553756,0.14510239,85362.0,85355.0,0.00588]
[1766108554661,0.14535,85357.0,85355.0,0.00588]
[1766108554863,0.14535,85357.0,85353.0,0.00588]
[1766108555064,0.14535,85357.0,85351.0,0.00588]
[1766108555263,0.00588,85357.0,85351.0,0.00588]
[1766108556058,0.14535,85364.0,85357.0,0.0117219]
[1766108556361,0.00588,85363.0,85354.0,0.0117222]
[1766108556561,0.00588,85363.0,85351.0,0.1535626]
[1766108556954,0.15123,85363.0,85353.0,0.0117224]
[1766108557150,0.15123,85363.0,85351.0,0.14184]
[1766108557555,0.15123,85363.0,85351.0,0.1535627]
[1766108557861,0.15123,85363.0,85351.0,0.0176027]
[1766108559171,0.15123,85363.0,85351.0,0.00588]
[1766108559368,0.15123,85363.0,85352.0,0.00588]
[1766108559563,0.15123,85363.0,85353.0,0.00588]
[1766108560064,0.00588,85362.0,85353.0,0.00588]
[1766108560270,0.14535,85361.0,85353.0,0.00588]
[1766108561774,0.3608,85358.0,85353.0,0.00588]
[1766108562073,0.14535,85357.0,85353.0,0.00588]
[1766108569373,0.3608,85358.0,85353.0,0.00588]
[1766108569676,0.14923,85357.0,85353.0,0.00588]
[1766108570878,0.3608,85358.0,85353.0,0.00588]
[1766108571980,0.14923,85357.0,85353.0,0.00588]
[1766108574187,0.14923,85357.0,85353.0,0.0176024]
[1766108575376,0.14923,85357.0,85354.0,0.00588]
[1766108576583,0.14923,85357.0,85349.0,0.00588]
[1766108576784,0.14923,85357.0,85350.0,0.00588]
[1766108576988,0.03656,85350.0,85341.0,2.46228]
[1766108577286,0.03656,85350.0,85343.0,0.00588]
[1766108577486,0.3608,85358.0,85345.0,0.50264]
[1766108577683,0.00588,85357.0,85348.0,0.20610449]
[1766108577884,0.00588,85357.0,85349.0,0.00588]
[1766108578286,0.00588,85357.0,85350.0,0.00588]
[1766108579087,0.00588,85357.0,85351.0,0.0117227]
[1766108579588,0.00588,85357.0,85350.0,0.00588]
[1766108584890,0.0176019,85357.0,85350.0,0.00588]
[1766108585583,0.3608,85351.0,85327.0,0.49899]
[1766108585792,0.3608,85343.0,85334.0,0.00588]
[1766108585990,0.36668,85343.0,85334.0,0.00588]
[1766108586190,0.0117243,85340.0,85334.0,0.00588]
[1766108586787,0.36668,85343.0,85334.0,0.00588]
[1766108588579,0.36668,85343.0,85335.0,0.0117249]
[1766108588884,0.36668,85343.0,85334.0,0.00588]
[1766108589195,0.36668,85343.0,85334.0,0.017605]
[1766108589494,0.36668,85343.0,85334.0,0.00588]
[1766108590297,0.36668,85343.0,85336.0,0.0117247]
[1766108593190,0.3608,85351.0,85338.0,0.3608]
[1766108593386,0.00588,85350.0,85346.0,0.14037]
[1766108593584,0.00121375,85350.0,85346.0,0.14037]
[1766108593783,0.00121375,85350.0,85345.0,0.3608]
[1766108594094,0.00121375,85350.0,85339.0,0.00588]
[1766108594095,0.00588,85349.0,85335.0,0.00588]
[1766108594278,0.3608,85341.0,85335.0,0.00588]
[1766108594794,0.00015,85339.0,85334.0,0.00588]
[1766108595093,0.00015,85339.0,85333.0,0.00588]
[1766108598480,0.36668,85341.0,85333.0,0.0176052]
[1766108598686,0.36668,85341.0,85335.0,0.0117249]
[1766108599894,0.00588,85346.0,85340.0,0.3608]
[1766108600094,0.00017576,85351.0,85340.0,0.3608]
[1766108600298,0.00588,85350.0,85340.0,0.56690449]
[1766108600985,0.08193,85350.0,85340.0,0.56690449]
[1766108601991,0.00588,85350.0,85347.0,0.3608]
[1766108602187,0.00588,85352.0,85347.0,0.3608]
[1766108602895,0.00588,85352.0,85343.0,0.00588]
[1766108603494,0.00017576,85356.0,85348.0,0.3608]
[1766108603495,0.07687576,85356.0,85348.0,0.3608]
[1766108603794,0.08258,85355.0,85348.0,0.3608]
[1766108603998,0.0943022,85355.0,85343.0,0.00588]
[1766108604202,0.08258,85355.0,85343.0,0.00588]
[1766108605089,0.00588,85355.0,85348.0,0.14037]
[1766108605286,6e-08,85356.0,85354.0,0.3608]
[1766108605488,6e-08,85356.0,85354.0,0.50117]
[1766108606092,6e-08,85356.0,85354.0,0.3608]
[1766108608194,6e-08,85356.0,85347.0,0.3608]
[1766108608195,0.07664006,85356.0,85347.0,0.34803]
[1766108608503,0.07664006,85356.0,85349.0,0.00063736]
[1766108609206,0.08252006,85356.0,85349.0,0.00063736]
[1766108610395,0.00588006,85356.0,85349.0,0.00063736]
[1766108616211,0.3608,85353.0,85349.0,0.00063736]
[1766108617711,0.00588006,85356.0,85349.0,0.00063736]
[1766108619415,0.00588006,85356.0,85346.0,0.00605576]
[1766108620005,0.3608,85353.0,85346.0,0.00605576]
[1766108621624,0.3608,85353.0,85346.0,0.01777906]
[1766108624212,0.3608,85353.0,85348.0,0.0117231]
[1766108625512,0.00588006,85356.0,85350.0,0.3608]
[1766108625513,6e-08,85356.0,85350.0,0.3608]
[1766108625710,0.00588,85356.0,85352.0,0.1527924]
[1766108625916,0.00588,85356.0,85350.0,0.3608]
[1766108631522,0.00017576,85362.0,85350.0,0.3608]
[1766108631721,0.0117184,85383.0,85369.0,0.0117202]
[1766108631924,0.00588,85379.0,85372.0,0.0117198]
[1766108632125,0.3608,85390.0,85377.0,0.3725191]
[1766108632318,0.00588,85389.0,85377.0,0.3608]
[1766108632721,0.00588,85388.0,85377.0,0.3608]
[1766108634233,0.0175978,85388.0,85377.0,0.3608]
[1766108634727,0.011718,85386.0,85377.0,0.3608]
[1766108634915,0.00588,85388.0,85377.0,0.3608]
[1766108636620,0.0117178,85387.0,85377.0,0.3608]
[1766108636821,0.0117181,85385.0,85377.0,0.3608]
[1766108637027,0.00588,85384.0,85377.0,0.3608]
[1766108639127,0.00588,85384.0,85376.0,0.3608]
[1766108639625,0.00588,85384.0,85374.0,0.00605576]
[1766108639626,0.3608,85377.0,85374.0,0.00017576]
[1766108639833,0.0117194,85375.0,85374.0,6e-08]
[1766108640019,0.0117201,85370.0,85362.0,0.00588]
[1766108640215,0.3608,85363.0,85358.0,0.00588]
[1766108643930,0.3608,85363.0,85358.0,0.0176017]
[1766108647239,0.00605576,85369.0,85358.0,0.0176017]
[1766108647240,0.00605576,85369.0,85362.0,0.3608]
[1766108647938,0.00605576,85369.0,85362.0,0.3725212]
[1766108648935,0.00605576,85369.0,85362.0,0.3608]
[1766108649935,0.01777606,85369.0,85362.0,0.3608]
[1766108650134,0.3608,85365.0,85358.0,0.00588]
[1766108651640,0.36668,85365.0,85358.0,0.14264]
[1766108651834,0.36668,85365.0,85360.0,0.0117214]
[1766108652329,0.36668,85365.0,85358.0,0.14264]
[1766108653542,0.36668,85365.0,85358.0,0.00588]
[1766108654836,0.3784008,85365.0,85358.0,0.00588]
[1766108655138,0.36668,85365.0,85358.0,0.00588]
[1766108656249,0.3608,85365.0,85358.0,0.00588]
[1766108656443,0.00588,85364.0,85358.0,0.00588]
[1766108660952,0.3608,85362.0,85358.0,0.00588]
[1766108661452,0.00017576,85369.0,85362.0,0.0117211]
[1766108661647,0.00588,85368.0,85362.0,0.13758]
[1766108661854,0.00588,85369.0,85362.0,0.13758]
[1766108662552,0.00588,85369.0,85362.0,0.14346]
[1766108663638,0.00588,85369.0,85366.0,0.3608]
[1766108665250,0.00588,85370.0,85366.0,0.3608]
[1766108666755,0.00017576,85374.0,85367.0,0.13758]
[1766108666946,0.00588,85378.0,85367.0,0.13758]
[1766108668555,0.00261,85376.0,85366.0,0.36668]
[1766108669948,0.0117194,85375.0,85366.0,0.36668]
[1766108670962,0.00261,85376.0,85366.0,0.36668]
[1766108671164,0.0175991,85378.0,85366.0,0.50426]
[1766108671956,0.0175991,85378.0,85368.0,0.3608]
[1766108672144,0.0117193,85376.0,85368.0,0.3608]
[1766108673156,0.00937,85378.0,85368.0,0.3608]
[1766108674547,0.00588,85378.0,85369.0,0.13758]
[1766108675761,0.0117191,85377.0,85369.0,0.13758]
[1766108677057,0.0117195,85375.0,85366.0,0.36668]
[1766108678565,0.42081713,85463.0,85366.0,0.36668]
[1766108678566,0.3608,85410.0,85385.0,0.13758]
[1766108678764,0.00588,85409.0,85397.0,0.13758]
[1766108678957,0.3608,85407.0,85397.0,0.13758]
[1766108679159,0.3608,85407.0,85396.0,0.3608]
[1766108679563,0.0117152,85406.0,85393.0,0.13775565]
[1766108679761,0.1607852,85406.0,85393.0,0.13775565]
[1766108679957,0.00588,85405.0,85393.0,0.13775565]
[1766108680157,0.0117155,85404.0,85393.0,0.13775565]
[1766108680867,0.14907,85404.0,85393.0,0.00017565]
[1766108681166,0.00588,85405.0,85393.0,0.00017565]
[1766108681167,0.1607856,85403.0,85393.0,0.00017565]
[1766108681764,0.1607856,85403.0,85389.0,0.13758]
[1766108681765,0.14907,85398.0,85376.0,0.3608]
[1766108681963,0.14907,85396.0,85382.0,0.00588]
[1766108682157,0.14907,85390.0,85384.0,0.33109]
[1766108682769,0.08373,85389.0,85378.0,0.00605565]
[1766108683270,0.08373,85389.0,85378.0,0.00017565]
[1766108683466,0.08373,85387.0,85378.0,0.00017565]
[1766108683665,0.00588,85386.0,85378.0,0.00017565]
[1766108683868,0.0897,85386.0,85378.0,0.00017565]
[1766108690073,0.4505,85386.0,85378.0,0.00017565]
[1766108690374,0.08139,85385.0,85378.0,0.00017565]
[1766108690876,0.08139,85385.0,85374.0,0.00588]
[1766108696373,0.0931081,85385.0,85373.0,0.3608]
[1766108696579,0.08051,85381.0,85373.0,0.3608]
[1766108696782,0.00588,85380.0,85373.0,0.3608]
[1766108703791,0.00588,85380.0,85373.0,0.49952]
[1766108704691,0.00588,85380.0,85374.0,0.13872]
[1766108705280,0.00588,85380.0,85373.0,0.3608]
[1766108705595,0.00588,85380.0,85350.0,0.2176299]
[1766108705596,0.08052,85368.0,85360.0,0.00588]
[1766108705889,0.3608,85361.0,85360.0,0.00588]
[1766108706683,0.3608,85361.0,85359.0,0.00588]
[1766108707184,0.0176005,85368.0,85359.0,0.1446]
[1766108707379,0.00588,85368.0,85359.0,0.1446]
[1766108708691,0.3608,85367.0,85359.0,0.1446]
[1766108709590,0.3608,85367.0,85359.0,0.00588]
[1766108710094,0.0117208,85365.0,85359.0,0.00588]
[1766108711289,0.3608,85367.0,85359.0,0.00588]
[1766108711898,0.0117207,85366.0,85359.0,0.00588]
[1766108712784,0.3608,85367.0,85359.0,0.00588]
[1766108713100,0.3608,85367.0,85359.0,0.14807]
[1766108715099,0.011721,85364.0,85359.0,0.00588]
[1766108716101,0.00588,85365.0,85359.0,0.00588]
[1766108719106,0.0176008,85365.0,85359.0,0.00588]
[1766108722211,0.00588,85365.0,85359.0,0.00588]
[1766108722911,0.00588,85365.0,85356.0,0.00588]
[1766108723412,0.00588,85365.0,85356.0,0.14807]
[1766108726215,0.3608,85367.0,85356.0,0.14807]
[1766108726418,0.3725182,85384.0,85367.0,0.14219]
[1766108726602,0.0117185,85382.0,85371.0,0.50299]
[1766108727506,0.1558185,85382.0,85371.0,0.50299]
[1766108728217,0.1558185,85382.0,85371.0,0.3608]
[1766108728814,0.1558185,85382.0,85370.0,0.2059071]
[1766108729017,0.1558185,85382.0,85371.0,0.3608]
[1766108729214,0.00588,85381.0,85371.0,0.3608]
[1766108729415,0.0117187,85380.0,85371.0,0.3608]
[1766108729813,0.00588,85381.0,85371.0,0.3608]
[1766108730410,0.00588,85381.0,85372.0,0.14219]
[1766108730809,0.1441,85383.0,85372.0,0.14219]
[1766108731010,0.00588,85382.0,85372.0,0.14219]
[1766108731310,0.1441,85383.0,85379.0,0.3608]
[1766108731709,0.00588,85382.0,85379.0,0.3608]
[1766108731904,0.00360476,85382.0,85379.0,0.3608]
[1766108732104,0.1441,85383.0,85379.0,0.3608]
[1766108732308,0.00588,85382.0,85379.0,0.3608]
[1766108733022,0.00588,85382.0,85375.0,0.3608]
[1766108733521,0.1441,85379.0,85367.0,0.14807]
[1766108733718,0.00588,85378.0,85367.0,0.14807]
[1766108735530,0.36668,85378.0,85367.0,0.14807]
[1766108736325,0.36668,85378.0,85371.0,0.15391]
[1766108736527,0.00588,85377.0,85371.0,0.15391]
[1766108736721,0.00588,85376.0,85374.0,0.3608]
[1766108736929,0.01189375,85385.0,85374.0,0.3608]
[1766108737115,0.00588,85384.0,85374.0,0.3608]
[1766108737314,0.00017565,85385.0,85374.0,0.3608]
[1766108737621,0.00588,85384.0,85381.0,0.3608]
[1766108737821,0.00017565,85385.0,85381.0,0.3608]
[1766108738228,0.00588,85384.0,85381.0,0.3608]
[1766108738525,0.00588,85383.0,85381.0,0.3608]
[1766108738918,0.00017565,85385.0,85381.0,0.2808]